[Event "16th Baltic Pearl Open"]
[Site "Lazy"]
[Date "2020.06.30"]
[Round "1.2"]
[White "Rak, Tomasz"]
[Black "Luch, Michal"]
[Result "0-1"]
[ECO "A46"]
[WhiteElo "1879"]
[BlackElo "2409"]
[Annotator "RC"]
[PlyCount "74"]
[EventDate "2020.06.28"]
[EventType "swiss"]
[EventCountry "POL"]
[SourceTitle "playchess.com"]
[Source "ChessBase"]
[SourceQuality "1"]
[TimeControl "5400+30"]

1. Nf3 {[%emt 0:00:00]} Nf6 {[%emt 0:00:00]} 2. d4 {[%emt 0:00:00]} e6 {[%emt 0:00:00]} 3. Bg5 {[%emt 0:00:00]} c5 {[%emt 0:01:12]} 4. e3 {[%emt 0:01:29]} Qb6 {[%emt 0:09:10]} 5. Bxf6 {[%emt 0:02:56]} Qxb2 {[%emt 0:08:33]} 6. Nbd2 {[%emt 0:04:06]} gxf6 {[%emt 0:00:03]} 7. Bd3 {[%emt 0:06:33]} Nc6 {[%emt 0:24:36]} 8. O-O {[%emt 0:03:40]} cxd4 {[%emt 0:15:46]} 9. exd4 {[%emt 0:07:14]} Nxd4 {[%emt 0:05:00]} 10. Nc4 {[%emt 0:01:35]} Qc3 {[%emt 0:05:27]} 11. Nxd4 {[%emt 0:06:22]} Qxd4 {[%emt 0:00:02]} 12. Qf3 {[%emt 0:01:03]} f5 {[%emt 0:05:26]} 13. Ne3 {[%emt 0:07:58]} f4 {[%emt 0:05:45]} 14. Nc4 {[%emt 0:05:11]} d5 {[%emt 0:05:21]} 15. Nd2 {[%emt 0:06:18]} Bd7 {[%emt 0:00:02]} 16. a4 {[%emt 0:10:30]} Bd6 {[%emt 0:04:27]} 17. Rfe1 {[%emt 0:09:02]} Kf8 {[%emt 0:02:53]} 18. Rad1 {[%emt 0:09:06]} Qg7 {[%emt 0:03:31]} 19. c4 {[%emt 0:00:51]} Bxa4 {[%emt 0:01:00]} 20. Rb1 {[%emt 0:03:05]} Bc6 {[%emt 0:00:01]} 21. cxd5 exd5 {[%emt 0:00:01]} 22. Nb3 {[%emt 0:02:05]} a5 {[%emt 0:00:12]} 23. Nc1 {[%emt 0:04:05]} Rg8 {[%emt 0:00:56]} 24. h3 {[%emt 0:01:28]} a4 {[%emt 0:01:43]} 25. Na2 {[%emt 0:00:19]} a3 {[%emt 0:00:28]} 26. Rec1 {[%emt 0:01:34]} Qf6 {[%emt 0:00:45]} 27. Nc3 {[%emt 0:01:44]} Rg5 {[%emt 0:00:24]} 28. Rc2 {[%emt 0:00:51]} Kg7 {[%emt 0:00:00]} 29. Bb5 {[%emt 0:01:43]} Bxb5 {[%emt 0:00:46]} 30. Rxb5 {[%emt 0:00:11]} Rc8 {[%emt 0:00:52]} 31. Nxd5 {[%emt 0:02:24]} Qa1+ {[%emt 0:00:16]} 32. Kh2 {[%emt 0:00:35]} Rxc2 {[%emt 0:00:08]} 33. Nb4 {[%emt 0:01:47]} Rxb5 {[%emt 0:00:47]} 34. Qg4+ {[%emt 0:00:27]} Kf8 {[%emt 0:00:13]} 35. Nxc2 {[%emt 0:00:02]} Qc3 {[%emt 0:00:40]} 36. Qh4 {[%emt 0:00:24]} f3+ {[%emt 0:00:49]} 37. g3 {[%emt 0:00:09]} Qxc2 {[%emt 0:00:19]} 0-1

[Event "16th Baltic Pearl Open"]
[Site "Lazy"]
[Date "2020.06.30"]
[Round "1.3"]
[White "Chylewski, Patryk"]
[Black "Lisinski, Henryk"]
[Result "1-0"]
[ECO "D46"]
[WhiteElo "2344"]
[BlackElo "1856"]
[Annotator "ChessBase"]
[PlyCount "89"]
[EventDate "2020.06.28"]
[EventType "swiss"]
[EventCountry "POL"]
[SourceTitle "playchess.com"]
[Source "ChessBase"]
[SourceQuality "1"]
[TimeControl "5400+30"]

1. d4 {[%emt 0:00:00]} d5 {[%emt 0:00:00]} 2. c4 {[%emt 0:00:00]} e6 {[%emt 0:00:00]} 3. Nf3 {[%emt 0:00:00]} Nf6 {[%emt 0:00:00]} 4. Nc3 {[%emt 0:01:13]} c6 {[%emt 0:00:09]} 5. e3 {[%emt 0:00:16]} Nbd7 {[%emt 0:00:16]} 6. Bd3 {[%emt 0:00:07]} Bd6 {[%emt 0:00:12]} 7. e4 {[%emt 0:00:34]} dxe4 {[%emt 0:00:42]} 8. Nxe4 {[%emt 0:00:06]} Nxe4 {[%emt 0:00:53]} 9. Bxe4 {[%emt 0:00:05]} Bb4+ {[%emt 0:05:34]} 10. Bd2 {[%emt 0:01:30]} Qa5 {[%emt 0:01:25]} 11. O-O {[%emt 0:01:09]} Bxd2 {[%emt 0:00:15]} 12. Nxd2 {[%emt 0:00:21]} O-O {[%emt 0:00:29]} 13. Re1 {[%emt 0:10:11]} Rd8 {[%emt 0:03:44]} 14. Qc2 {[%emt 0:04:23]} Nf6 {[%emt 0:01:39]} 15. Bf3 {[%emt 0:01:27]} Qc7 {[%emt 0:15:30]} 16. Nb3 {[%emt 0:09:20]} b6 {[%emt 0:00:19]} 17. Rad1 {[%emt 0:02:53]} Bb7 {[%emt 0:00:16]} 18. g3 {[%emt 0:02:26]} Rac8 {[%emt 0:00:40]} 19. Qe2 {[%emt 0:02:54]} h6 {[%emt 0:00:38]} 20. Rd3 {[%emt 0:11:37]} Rd7 {[%emt 0:02:23]} 21. Red1 {[%emt 0:02:15]} Rcd8 {[%emt 0:00:16]} 22. R3d2 {[%emt 0:01:00]} Nh7 {[%emt 0:04:59]} 23. h4 {[%emt 0:00:47]} Nf6 {[%emt 0:00:25]} 24. Qe3 {[%emt 0:03:04]} Ne8 {[%emt 0:04:52]} 25. Qc3 {[%emt 0:10:01]} Nf6 {[%emt 0:01:20]} 26. Qc2 {[%emt 0:02:00]} Qd6 {[%emt 0:03:44]} 27. Bg2 {[%emt 0:02:07]} a5 {[%emt 0:03:51]} 28. c5 {[%emt 0:03:43]} Qc7 {[%emt 0:00:37]} 29. cxb6 {[%emt 0:00:25]} Qxb6 {[%emt 0:00:09]} 30. Qc5 {[%emt 0:00:55]} Qb5 {[%emt 0:04:03]} 31. Qxb5 {[%emt 0:01:30]} cxb5 {[%emt 0:00:10]} 32. Nc5 {[%emt 0:01:42]} Bxg2 {[%emt 0:00:19]} 33. Nxd7 {[%emt 0:00:08]} Rxd7 {[%emt 0:00:12]} 34. Kxg2 {[%emt 0:00:07]} Kf8 {[%emt 0:01:00]} 35. Rc2 {[%emt 0:00:33]} Ke7 {[%emt 0:01:01]} 36. Rc5 {[%emt 0:00:23]} Rd5 {[%emt 0:00:09]} 37. Rxd5 {[%emt 0:00:09]} Nxd5 {[%emt 0:00:22]} 38. Rc1 {[%emt 0:00:33]} Kd6 {[%emt 0:00:30]} 39. Rc8 {[%emt 0:00:40]} g6 {[%emt 0:00:22]} 40. g4 {[%emt 0:01:33]} Nf4+ {[%emt 0:01:28]} 41. Kf3 {[%emt 0:00:42]} Nd3 {[%emt 0:00:13]} 42. b3 {[%emt 0:00:21]} Nb4 {[%emt 0:02:03]} 43. a3 {[%emt 0:00:31]} Nc6 {[%emt 0:00:29]} 44. Ke3 {[%emt 0:00:37]} f5 {[%emt 0:00:32]} 45. gxf5 {[%emt 0:00:21]} 1-0

[Event "16th Baltic Pearl Open"]
[Site "Lazy"]
[Date "2020.06.30"]
[Round "1.4"]
[White "Jedrusik, Adam"]
[Black "Szpar, Milosz"]
[Result "0-1"]
[ECO "A48"]
[WhiteElo "1852"]
[BlackElo "2343"]
[Annotator "ChessBase"]
[PlyCount "52"]
[EventDate "2020.06.28"]
[EventType "swiss"]
[EventCountry "POL"]
[SourceTitle "playchess.com"]
[Source "ChessBase"]
[SourceQuality "1"]
[TimeControl "5400+30"]

1. d4 {[%emt 0:00:00]} g6 {[%emt 0:00:00]} 2. Bg5 {[%emt 0:02:01]} Bg7 {[%emt 0:00:02]} 3. Nf3 {[%emt 0:00:05]} Nf6 {[%emt 0:00:31]} 4. Nbd2 {[%emt 0:00:44]} O-O {[%emt 0:01:08]} 5. c3 {[%emt 0:05:09]} d6 {[%emt 0:03:48]} 6. Qc2 {[%emt 0:00:39]} c5 {[%emt 0:06:20]} 7. e3 {[%emt 0:02:31]} Nc6 {[%emt 0:01:25]} 8. Bxf6 {[%emt 0:12:47]} exf6 {[%emt 0:01:09]} 9. Bd3 {[%emt 0:19:11]} f5 {[%emt 0:00:30]} 10. g3 {[%emt 0:01:00]} b6 {[%emt 0:03:08]} 11. O-O {[%emt 0:04:13]} Bb7 {[%emt 0:01:12]} 12. Rfe1 {[%emt 0:03:00]} Rc8 {[%emt 0:05:29]} 13. Qd1 {[%emt 0:10:11]} Re8 {[%emt 0:00:55]} 14. Re2 {[%emt 0:06:00]} Rc7 {[%emt 0:09:51]} 15. Qf1 {[%emt 0:01:21]} Qa8 {[%emt 0:03:10]} 16. Nh4 {[%emt 0:01:53]} Rce7 {[%emt 0:09:03]} 17. Rae1 {[%emt 0:01:33]} Nd8 {[%emt 0:05:12]} 18. Bb5 {[%emt 0:16:17]} Rf8 {[%emt 0:00:19]} 19. a4 {[%emt 0:01:44]} Ne6 {[%emt 0:05:07]} 20. a5 {[%emt 0:01:27]} a6 {[%emt 0:02:28]} 21. Bc4 {[%emt 0:01:10]} b5 {[%emt 0:02:52]} 22. Bxe6 {[%emt 0:02:29]} fxe6 {[%emt 0:03:29]} 23. dxc5 {[%emt 0:00:47]} dxc5 {[%emt 0:00:42]} 24. e4 {[%emt 0:00:04]} f4 {[%emt 0:02:33]} 25. Nb3 {[%emt 0:01:58]} g5 {[%emt 0:07:09]} 26. Nf3 {[%emt 0:01:38]} g4 {[%emt 0:01:26]} 0-1

[Event "16th Baltic Pearl Open"]
[Site "Lazy"]
[Date "2020.06.30"]
[Round "2.3"]
[White "Kacprzak, Kacper"]
[Black "Chylewski, Patryk"]
[Result "0-1"]
[ECO "B81"]
[WhiteElo "1977"]
[BlackElo "2344"]
[Annotator "NA"]
[PlyCount "118"]
[EventDate "2020.06.28"]
[EventType "swiss"]
[EventCountry "POL"]
[SourceTitle "playchess.com"]
[Source "ChessBase"]
[SourceQuality "1"]
[TimeControl "5400+30"]

1. e4 {[%emt 0:00:00]} c5 {[%emt 0:03:41]} 2. Nf3 {[%emt 0:00:00]} d6 {[%emt 0:00:05]} 3. d4 {[%emt 0:00:00]} cxd4 4. Nxd4 {[%emt 0:00:00]} Nf6 {[%emt 0:00:08]} 5. Nc3 {[%emt 0:00:00]} a6 {[%emt 0:00:03]} 6. h3 {[%emt 0:00:00]} e6 {[%emt 0:00:10]} 7. g4 {[%emt 0:00:36]} h6 {[%emt 0:00:06]} 8. Bg2 {[%emt 0:00:03]} Nbd7 {[%emt 0:01:03]} 9. Be3 {[%emt 0:01:32]} g5 {[%emt 0:00:07]} 10. Qe2 {[%emt 0:01:55]} Ne5 {[%emt 0:00:06]} 11. f4 {[%emt 0:13:16]} gxf4 {[%emt 0:00:09]} 12. Bxf4 {[%emt 0:00:03]} Nfd7 {[%emt 0:00:12]} 13. O-O-O {[%emt 0:05:46]} b5 {[%emt 0:01:19]} 14. Nf3 {[%emt 0:09:27]} Qc7 {[%emt 0:05:39]} 15. a3 {[%emt 0:03:55]} Bb7 {[%emt 0:00:31]} 16. Rhf1 {[%emt 0:05:37]} Rc8 {[%emt 0:07:31]} 17. Nxe5 {[%emt 0:10:00]} Nxe5 {[%emt 0:01:47]} 18. g5 {[%emt 0:02:41]} hxg5 {[%emt 0:10:01]} 19. Bxg5 {[%emt 0:00:14]} Bh6 {[%emt 0:00:34]} 20. Qh5 {[%emt 0:04:51]} Bg7 {[%emt 0:01:00]} 21. Qe2 {[%emt 0:04:48]} Nc4 {[%emt 0:07:27]} 22. e5 {[%emt 0:05:12]} d5 {[%emt 0:10:10]} 23. Bxd5 {[%emt 0:05:23]} Bxd5 {[%emt 0:03:05]} 24. Nxd5 {[%emt 0:02:36]} exd5 {[%emt 0:11:19]} 25. Bf6 {[%emt 0:00:13]} Ne3 {[%emt 0:09:51]} 26. Bxg7 {[%emt 0:03:33]} Qxc2+ {[%emt 0:00:24]} 27. Qxc2 {[%emt 0:00:05]} Rxc2+ {[%emt 0:00:05]} 28. Kb1 {[%emt 0:00:02]} Rxh3 {[%emt 0:02:00]} 29. Rh1 {[%emt 0:01:09]} Nxd1 {[%emt 0:11:20]} 30. Rxh3 {[%emt 0:00:09]} Rxb2+ {[%emt 0:02:16]} 31. Kc1 {[%emt 0:00:06]} Rg2 {[%emt 0:00:07]} 32. Rh8+ {[%emt 0:01:10]} Kd7 {[%emt 0:00:10]} 33. Bf6 {[%emt 0:00:03]} Ne3 {[%emt 0:01:03]} 34. Rd8+ {[%emt 0:00:25]} Ke6 {[%emt 0:00:14]} 35. Rd6+ {[%emt 0:00:52]} Kf5 {[%emt 0:00:05]} 36. Rxa6 {[%emt 0:00:13]} Nc4 {[%emt 0:01:01]} 37. Ra7 {[%emt 0:00:21]} Kg6 {[%emt 0:07:30]} 38. Ra8 {[%emt 0:06:46]} Ra2 {[%emt 0:01:29]} 39. Rd8 {[%emt 0:01:16]} Rxa3 {[%emt 0:00:23]} 40. Rg8+ {[%emt 0:00:58]} Kf5 {[%emt 0:00:06]} 41. Rf8 {[%emt 0:00:08]} Nxe5 {[%emt 0:00:58]} 42. Bxe5 {[%emt 0:00:36]} Kxe5 {[%emt 0:00:04]} 43. Rxf7 {[%emt 0:00:04]} Kd4 {[%emt 0:01:39]} 44. Kb2 {[%emt 0:00:09]} Rh3 {[%emt 0:01:33]} 45. Rb7 {[%emt 0:00:25]} Kc4 {[%emt 0:00:04]} 46. Rc7+ {[%emt 0:00:05]} Kb4 {[%emt 0:00:07]} 47. Kc2 {[%emt 0:00:27]} d4 {[%emt 0:00:40]} 48. Rd7 {[%emt 0:00:25]} d3+ {[%emt 0:00:05]} 49. Kd2 {[%emt 0:00:13]} Kb3 {[%emt 0:00:07]} 50. Rb7 {[%emt 0:00:29]} b4 {[%emt 0:00:04]} 51. Rb8 {[%emt 0:00:03]} Ka3 {[%emt 0:00:15]} 52. Ra8+ {[%emt 0:01:50]} Kb2 {[%emt 0:00:09]} 53. Ra4 {[%emt 0:00:12]} b3 {[%emt 0:00:07]} 54. Ra8 {[%emt 0:00:07]} Kb1 {[%emt 0:00:25]} 55. Ra3 {[%emt 0:00:19]} b2 {[%emt 0:00:26]} 56. Ra8 {[%emt 0:00:04]} Rh2+ {[%emt 0:00:15]} 57. Kd1 {[%emt 0:01:27]} d2 {[%emt 0:00:08]} 58. Ra7 {[%emt 0:00:06]} Rh1+ {[%emt 0:00:09]} 59. Kxd2 {[%emt 0:00:07]} Rh8 {[%emt 0:00:07]} 0-1

[Event "16th Baltic Pearl Open"]
[Site "Lazy"]
[Date "2020.06.30"]
[Round "2.4"]
[White "Szpar, Milosz"]
[Black "Czechowski, Jakub"]
[Result "1/2-1/2"]
[ECO "C98"]
[WhiteElo "2343"]
[BlackElo "2025"]
[Annotator "NA RC"]
[PlyCount "80"]
[EventDate "2020.06.28"]
[EventType "swiss"]
[EventCountry "POL"]
[SourceTitle "playchess.com"]
[Source "ChessBase"]
[SourceQuality "1"]
[TimeControl "5400+30"]

1. e4 {[%emt 0:00:00]} e5 {[%emt 0:00:00]} 2. Nf3 {[%emt 0:00:00]} Nc6 {[%emt 0:00:00]} 3. Bb5 {[%emt 0:00:12]} a6 {[%emt 0:00:00]} 4. Ba4 {[%emt 0:00:05]} Nf6 {[%emt 0:00:00]} 5. O-O {[%emt 0:00:21]} Be7 {[%emt 0:00:00]} 6. Re1 {[%emt 0:00:23]} b5 {[%emt 0:00:00]} 7. Bb3 {[%emt 0:00:05]} d6 {[%emt 0:00:05]} 8. c3 {[%emt 0:00:33]} O-O {[%emt 0:00:07]} 9. h3 {[%emt 0:00:33]} Na5 {[%emt 0:00:04]} 10. Bc2 {[%emt 0:00:35]} c5 {[%emt 0:00:03]} 11. d4 {[%emt 0:00:38]} Qc7 {[%emt 0:00:01]} 12. Nbd2 {[%emt 0:00:36]} Nc6 {[%emt 0:00:02]} 13. d5 {[%emt 0:04:50]} Nd8 {[%emt 0:00:01]} 14. a4 {[%emt 0:06:42]} Rb8 {[%emt 0:00:21]} 15. axb5 {[%emt 0:03:23]} axb5 {[%emt 0:00:01]} 16. b4 {[%emt 0:01:55]} c4 {[%emt 0:00:20]} 17. Nf1 {[%emt 0:01:59]} Ne8 {[%emt 0:00:02]} 18. Ng3 {[%emt 0:03:45]} g6 {[%emt 0:00:01]} 19. Bh6 {[%emt 0:05:32]} Ng7 {[%emt 0:00:02]} 20. Nh2 {[%emt 0:09:41]} f6 {[%emt 0:00:10]} 21. Rf1 {[%emt 0:15:52]} Nf7 {[%emt 0:00:09]} 22. Be3 {[%emt 0:00:52]} Bd7 {[%emt 0:03:02]} 23. Ra7 {[%emt 0:03:50]} Qc8 {[%emt 0:06:38]} 24. Qa1 {[%emt 0:06:29]} Bd8 {[%emt 0:04:56]} 25. Kh1 {[%emt 0:07:17]} Bb6 {[%emt 0:07:01]} 26. Bxb6 {[%emt 0:01:35]} Rxb6 {[%emt 0:00:01]} 27. Qa5 {[%emt 0:01:48]} Rb7 {[%emt 0:04:29]} 28. Nf3 {[%emt 0:03:22]} Ne8 {[%emt 0:02:44]} 29. Ra1 {[%emt 0:01:05]} Nc7 {[%emt 0:00:08]} 30. Kh2 {[%emt 0:03:44]} Qb8 {[%emt 0:04:38]} 31. Nf1 {[%emt 0:05:24]} Rb6 {[%emt 0:12:30]} 32. Qa2 {[%emt 0:01:30]} Rb7 {[%emt 0:04:39]} 33. Ra5 {[%emt 0:00:05]} Kg7 {[%emt 0:04:45]} 34. Ne3 {[%emt 0:00:14]} Qc8 {[%emt 0:05:15]} 35. Qb1 {[%emt 0:00:41]} Rb8 {[%emt 0:01:05]} 36. R1a3 {[%emt 0:01:19]} Qb7 {[%emt 0:01:21]} 37. Ra7 {[%emt 0:01:23]} Qb6 {[%emt 0:00:01]} 38. Qa1 {[%emt 0:00:53]} Bc8 {[%emt 0:05:01]} 39. Kg1 {[%emt 0:01:28]} Bb7 {[%emt 0:00:17]} 40. Nd2 {[%emt 0:01:50]} Ra8 {[%emt 0:00:06]} 1/2-1/2

[Event "16th Baltic Pearl Open"]
[Site "Lazy"]
[Date "2020.06.30"]
[Round "3.3"]
[White "Chylewski, Patryk"]
[Black "Rudzinska, Michalina"]
[Result "1-0"]
[ECO "A46"]
[WhiteElo "2344"]
[BlackElo "2080"]
[Annotator "NA"]
[PlyCount "81"]
[EventDate "2020.06.28"]
[EventType "swiss"]
[EventCountry "POL"]
[SourceTitle "playchess.com"]
[Source "ChessBase"]
[SourceQuality "1"]
[TimeControl "5400+30"]

1. d4 {[%emt 0:00:00]} Nf6 {[%emt 0:00:00]} 2. Nf3 {[%emt 0:00:00]} e6 {[%emt 0:00:00]} 3. Bg5 {[%emt 0:01:22]} c5 {[%emt 0:00:54]} 4. e3 {[%emt 0:00:29]} b6 {[%emt 0:01:03]} 5. Bd3 {[%emt 0:00:51]} cxd4 {[%emt 0:00:33]} 6. exd4 {[%emt 0:00:13]} Bb7 {[%emt 0:00:07]} 7. O-O {[%emt 0:00:49]} Be7 {[%emt 0:00:16]} 8. Qe2 {[%emt 0:03:55]} O-O {[%emt 0:00:40]} 9. c3 {[%emt 0:02:46]} d6 {[%emt 0:00:45]} 10. Nbd2 {[%emt 0:00:10]} Nbd7 {[%emt 0:00:52]} 11. a4 {[%emt 0:00:48]} Nd5 {[%emt 0:06:24]} 12. Qe4 {[%emt 0:02:54]} g6 {[%emt 0:02:20]} 13. Qh4 {[%emt 0:02:28]} f6 {[%emt 0:11:26]} 14. Bh6 {[%emt 0:02:50]} Re8 {[%emt 0:00:17]} 15. Qg3 {[%emt 0:13:33]} Bf8 {[%emt 0:05:28]} 16. Bxf8 {[%emt 0:02:08]} Nxf8 {[%emt 0:00:07]} 17. a5 {[%emt 0:07:40]} a6 {[%emt 0:11:41]} 18. Nc4 {[%emt 0:11:47]} e5 {[%emt 0:02:18]} 19. dxe5 {[%emt 0:11:20]} dxe5 {[%emt 0:00:30]} 20. Rfd1 {[%emt 0:01:31]} e4 {[%emt 0:13:34]} 21. Nd6 {[%emt 0:05:29]} exd3 {[%emt 0:00:44]} 22. Nxb7 {[%emt 0:01:15]} Qe7 {[%emt 0:02:17]} 23. Nd6 {[%emt 0:01:06]} Red8 {[%emt 0:00:33]} 24. Nf5 {[%emt 0:01:45]} Qe4 {[%emt 0:02:05]} 25. Nh6+ {[%emt 0:02:34]} Kg7 {[%emt 0:00:15]} 26. Re1 {[%emt 0:00:27]} Qc4 {[%emt 0:04:11]} 27. Nd4 {[%emt 0:02:13]} Rd7 {[%emt 0:04:56]} 28. axb6 {[%emt 0:02:49]} Nxb6 {[%emt 0:07:28]} 29. Nhf5+ {[%emt 0:07:24]} Kh8 {[%emt 0:00:23]} 30. Ne3 {[%emt 0:00:10]} Qf7 {[%emt 0:04:35]} 31. Red1 {[%emt 0:01:27]} Ne6 {[%emt 0:08:03]} 32. Rxd3 {[%emt 0:00:13]} a5 {[%emt 0:00:46]} 33. Rdd1 {[%emt 0:02:09]} Nxd4 {[%emt 0:03:47]} 34. Rxd4 {[%emt 0:00:08]} Rxd4 {[%emt 0:02:27]} 35. cxd4 {[%emt 0:00:06]} Qb3 {[%emt 0:02:03]} 36. Qd6 {[%emt 0:01:59]} Qxb2 {[%emt 0:01:14]} 37. Qxf6+ {[%emt 0:00:08]} Kg8 {[%emt 0:00:04]} 38. Rf1 {[%emt 0:00:42]} Rf8 {[%emt 0:02:58]} 39. Qe6+ {[%emt 0:00:13]} Kg7 {[%emt 0:00:05]} 40. Qe5+ {[%emt 0:00:30]} Kf7 {[%emt 0:00:44]} 41. Ng4 {[%emt 0:00:19]} 1-0

[Event "16th Baltic Pearl Open"]
[Site "Lazy"]
[Date "2020.07.01"]
[Round "4.1"]
[White "Czernek, Tymon"]
[Black "Kosakowski, Jakub"]
[Result "0-1"]
[ECO "B31"]
[WhiteElo "2199"]
[BlackElo "2416"]
[Annotator "ChessBase"]
[PlyCount "76"]
[EventDate "2020.06.28"]
[EventType "swiss"]
[EventCountry "POL"]
[SourceTitle "playchess.com"]
[Source "ChessBase"]
[SourceQuality "1"]
[TimeControl "5400+30"]

1. e4 {[%emt 0:00:00]} c5 {[%emt 0:00:00]} 2. Nc3 {[%emt 0:00:00]} Nc6 {[%emt 0:00:00]} 3. Nf3 {[%emt 0:00:00]} g6 {[%emt 0:01:22]} 4. Bb5 {[%emt 0:01:53]} Bg7 {[%emt 0:00:15]} 5. O-O {[%emt 0:00:57]} Nh6 {[%emt 0:06:45]} 6. Re1 {[%emt 0:03:13]} O-O {[%emt 0:01:23]} 7. h3 {[%emt 0:08:36]} d6 {[%emt 0:03:26]} 8. d3 {[%emt 0:06:55]} Bd7 {[%emt 0:02:21]} 9. Bg5 {[%emt 0:03:12]} f6 {[%emt 0:03:09]} 10. Be3 {[%emt 0:01:11]} e5 {[%emt 0:00:19]} 11. Nd5 {[%emt 0:02:09]} Nf7 {[%emt 0:00:21]} 12. c3 {[%emt 0:12:59]} f5 {[%emt 0:03:29]} 13. a4 {[%emt 0:02:27]} Kh8 {[%emt 0:05:19]} 14. Bc4 {[%emt 0:02:49]} Rc8 {[%emt 0:01:49]} 15. Ba2 {[%emt 0:03:50]} f4 {[%emt 0:11:49]} 16. Bc1 {[%emt 0:01:46]} Ng5 {[%emt 0:00:10]} 17. Nh2 {[%emt 0:09:01]} h5 {[%emt 0:06:18]} 18. Bb3 {[%emt 0:02:27]} Ne6 {[%emt 0:19:13]} 19. Qe2 {[%emt 0:02:19]} Qe8 {[%emt 0:01:48]} 20. Bd1 {[%emt 0:00:41]} Qf7 {[%emt 0:00:15]} 21. Ra3 {[%emt 0:01:58]} Bh6 {[%emt 0:00:36]} 22. Bd2 {[%emt 0:02:07]} Qg7 {[%emt 0:02:13]} 23. Kh1 {[%emt 0:02:53]} Bg5 {[%emt 0:02:23]} 24. Rg1 {[%emt 0:02:13]} Qh6 {[%emt 0:02:48]} 25. Nf3 {[%emt 0:02:03]} Bd8 {[%emt 0:01:01]} 26. Nh2 {[%emt 0:00:55]} Qh7 {[%emt 0:00:30]} 27. Be1 {[%emt 0:01:36]} Ng5 {[%emt 0:00:39]} 28. Qf1 {[%emt 0:02:42]} Be6 {[%emt 0:01:06]} 29. Nf3 {[%emt 0:01:20]} Nxf3 {[%emt 0:01:02]} 30. gxf3 {[%emt 0:00:38]} Bh4 {[%emt 0:00:54]} 31. Kh2 {[%emt 0:00:35]} g5 {[%emt 0:00:13]} 32. Qg2 {[%emt 0:00:38]} Qh6 {[%emt 0:00:42]} 33. Bd2 {[%emt 0:00:36]} Rg8 {[%emt 0:00:14]} 34. Rb3 {[%emt 0:00:28]} Rg7 {[%emt 0:00:19]} 35. Be2 {[%emt 0:00:14]} Rcg8 {[%emt 0:00:14]} 36. Qf1 {[%emt 0:00:20]} g4 {[%emt 0:00:15]} 37. fxg4 {[%emt 0:00:07]} hxg4 {[%emt 0:00:06]} 38. Bxg4 {[%emt 0:00:09]} Bxg4 {[%emt 0:01:17]} 0-1

[Event "16th Baltic Pearl Open"]
[Site "Lazy"]
[Date "2020.07.01"]
[Round "4.2"]
[White "Klimkowski, Jan"]
[Black "Chylewski, Patryk"]
[Result "1-0"]
[ECO "C95"]
[WhiteElo "2193"]
[BlackElo "2344"]
[Annotator "ChessBase"]
[PlyCount "101"]
[EventDate "2020.06.28"]
[EventType "swiss"]
[EventCountry "POL"]
[SourceTitle "playchess.com"]
[Source "ChessBase"]
[SourceQuality "1"]
[TimeControl "5400+30"]

1. e4 {[%emt 0:00:00]} e5 {[%emt 0:01:54]} 2. Nf3 {[%emt 0:00:00]} Nc6 {[%emt 0:00:05]} 3. Bb5 {[%emt 0:00:00]} a6 {[%emt 0:00:04]} 4. Ba4 {[%emt 0:00:00]} Nf6 {[%emt 0:00:06]} 5. O-O {[%emt 0:00:00]} Be7 {[%emt 0:00:06]} 6. Re1 {[%emt 0:00:04]} b5 {[%emt 0:00:05]} 7. Bb3 {[%emt 0:00:04]} d6 {[%emt 0:00:05]} 8. c3 {[%emt 0:00:09]} O-O {[%emt 0:00:08]} 9. h3 {[%emt 0:00:05]} Nb8 {[%emt 0:00:08]} 10. d4 {[%emt 0:00:05]} Nbd7 {[%emt 0:00:04]} 11. Nbd2 {[%emt 0:00:06]} Bb7 {[%emt 0:00:04]} 12. Bc2 {[%emt 0:00:46]} Re8 {[%emt 0:00:08]} 13. Nf1 {[%emt 0:00:07]} Bf8 {[%emt 0:00:04]} 14. Ng3 {[%emt 0:00:05]} g6 {[%emt 0:00:08]} 15. a4 {[%emt 0:00:17]} c5 {[%emt 0:00:07]} 16. d5 {[%emt 0:08:02]} c4 {[%emt 0:01:24]} 17. Be3 {[%emt 0:01:33]} Nc5 {[%emt 0:00:06]} 18. Qd2 {[%emt 0:01:10]} Qc7 {[%emt 0:02:17]} 19. a5 {[%emt 0:02:40]} Bc8 {[%emt 0:02:56]} 20. Bh6 {[%emt 0:06:14]} Bxh6 {[%emt 0:11:38]} 21. Qxh6 {[%emt 0:00:20]} Qe7 {[%emt 0:00:31]} 22. Nd2 {[%emt 0:05:28]} Nfd7 {[%emt 0:01:07]} 23. Rf1 {[%emt 0:03:57]} Nb7 {[%emt 0:08:38]} 24. Ne2 {[%emt 0:05:02]} Qf8 {[%emt 0:03:58]} 25. Qe3 {[%emt 0:02:37]} Qg7 {[%emt 0:02:40]} 26. f4 {[%emt 0:06:47]} exf4 {[%emt 0:02:21]} 27. Rxf4 {[%emt 0:00:46]} Ne5 {[%emt 0:03:25]} 28. Qb6 {[%emt 0:03:49]} Re7 {[%emt 0:07:40]} 29. Raf1 {[%emt 0:04:15]} Qf8 {[%emt 0:01:56]} 30. Nf3 {[%emt 0:02:57]} Qd8 {[%emt 0:09:37]} 31. Qf2 {[%emt 0:03:21]} Nxf3+ {[%emt 0:01:34]} 32. Rxf3 {[%emt 0:02:34]} Qe8 {[%emt 0:05:31]} 33. Ng3 {[%emt 0:03:24]} Nd8 {[%emt 0:08:29]} 34. Rf6 {[%emt 0:09:58]} Qd7 {[%emt 0:00:10]} 35. Qf4 {[%emt 0:02:39]} Re5 {[%emt 0:00:52]} 36. Ne2 {[%emt 0:01:22]} Ra7 {[%emt 0:21:13]} 37. Nd4 {[%emt 0:00:22]} Qe8 {[%emt 0:01:13]} 38. Rxd6 {[%emt 0:00:52]} Nb7 {[%emt 0:00:44]} 39. Rc6 {[%emt 0:01:00]} Ra8 {[%emt 0:01:14]} 40. Rf6 {[%emt 0:03:15]} Nd8 {[%emt 0:00:25]} 41. Nc6 {[%emt 0:00:39]} Nxc6 {[%emt 0:00:13]} 42. Rxf7 {[%emt 0:00:09]} Bf5 {[%emt 0:03:23]} 43. Rc7 {[%emt 0:03:07]} Bxe4 {[%emt 0:02:11]} 44. dxc6 {[%emt 0:01:10]} Bf5 {[%emt 0:00:33]} 45. Qh6 {[%emt 0:01:17]} Re7 {[%emt 0:00:07]} 46. Rxe7 {[%emt 0:00:27]} Qxe7 {[%emt 0:00:05]} 47. Bxf5 {[%emt 0:00:08]} Qc5+ {[%emt 0:00:27]} 48. Kh1 {[%emt 0:00:09]} gxf5 {[%emt 0:00:17]} 49. Qg5+ {[%emt 0:00:03]} Kh8 {[%emt 0:00:06]} 50. Qf6+ {[%emt 0:00:03]} Kg8 {[%emt 0:00:05]} 51. Rxf5 {[%emt 0:00:04]} 1-0